[Event "Memorial Ukrainian Chess Warriors 2024"]
[Site "Lviv"]
[Date "2024.03.15"]
[Round "5.5"]
[White "Lornye, Pylyp"]
[Black "Dehtiarov, Roman"]
[Result "0-1"]
[ECO "A06"]
[WhiteElo "2147"]
[BlackElo "2319"]
[Annotator "TA"]
[PlyCount "86"]
[EventDate "2024.03.06"]
[EventType "swiss"]
[EventCountry "UKR"]
[SourceTitle "playchess.com"]
[Source "ChessBase"]
[SourceQuality "1"]
[TimeControl "600+5"]

{[%evp 20,86,0,3,1,7,14,16,22,13,22,5,14,0,34,23,36,31,22,27,21,20,58,53,72,83,85,-127,-163,-173,-174,-237,-246,-245,-250,-351,-339,-326,-231,-353,-363,-397,-370,-362,-364,-370,-370,-345,-360,-735,-267,-541,0,-924,-924,-837,-739,-1610,-1497,-29965,-6210,-29987,-29988,-29991,-29991,-29991,-29992,-29994,-29994]} 1. Nf3 {[%emt 0:00:01]} d5 {[%emt 0:00:01]} 2. g3 {[%emt 0:00:01]} Bg4 {[%emt 0:00:02]} 3. Bg2 {[%emt 0:00:01]} e6 {[%emt 0:00:02]} 4. h3 {[%emt 0:00:01]} Bxf3 {[%emt 0:00:18]} 5. Bxf3 {[%emt 0:00:01]} Nf6 {[%emt 0:00:02]} 6. c4 {[%emt 0:00:10]} Nbd7 {[%emt 0:00:08]} 7. O-O {[%emt 0:00:12]} c6 {[%emt 0:00:05]} 8. cxd5 {[%emt 0:00:02]} exd5 {[%emt 0:00:21]} 9. d3 {[%emt 0:00:02]} Bd6 {[%emt 0:00:21]} 10. Nc3 {[%emt 0:00:23]} O-O {[%emt 0:00:33]} 11. e4 {[%emt 0:00:24]} dxe4 {[%emt 0:00:20]} 12. dxe4 {[%emt 0:00:04]} Qe7 {[%emt 0:00:03]} 13. Qc2 {[%emt 0:00:35]} Rfe8 {[%emt 0:00:05] The position is equal.} 14. Bg2 {[%emt 0:00:17]} Bb4 {[%emt 0:01:01]} 15. Re1 {[%emt 0:00:44]} Rad8 {[%emt 0:00:06]} 16. Be3 {[%emt 0:01:39]} Nb6 {[%emt 0:02:51]} 17. a3 {[%emt 0:00:57]} Bc5 {[%emt 0:01:18] [#]} 18. Nd5 $1 {[%emt 0:01:59]} cxd5 {[%emt 0:00:17]} 19. Bxc5 {[%emt 0:00:01]} Qc7 {[%emt 0:00:26]} 20. exd5 {[%emt 0:00:09] d6 would now be deadly.} Rxe1+ {[%emt 0:00:51]} 21. Rxe1 {[%emt 0:00:01]} Nbd7 {[%emt 0:00:06]} 22. Rc1 $1 {[%emt 0:00:55] Black must now prevent Be7.} Rc8 {[%emt 0:00:04][%cal Rc7c5]} 23. b4 {[%emt 0:00:01]} (23. Qf5 $1 $16) 23... b6 $1 $17 {[%emt 0:00:07] White is on the road to losing.} 24. d6 {[%emt 0:00:01]} Qb8 {[%emt 0:00:15]} 25. Qf5 {[%emt 0:00:29]} (25. Rb1 $142 bxc5 26. bxc5 Qxd6 27. c6) 25... bxc5 $19 {[%emt 0:00:20]} 26. bxc5 {[%emt 0:00:01] [#] Threatens to win with Rb1.} Qb5 {[%emt 0:00:20][%cal Rc8c5]} 27. a4 {[%emt 0:00:31] [#]} (27. Qb1 {keeps fighting.} Qxb1 (27... Rxc5 $2 28. Qxb5 Rxb5 29. Rc8+ Nf8 30. Ra8 $19) 28. Rxb1 Nxc5 (28... Rxc5 $2 29. Rb7 $19) 29. Rc1) 27... Qa5 $1 {[%emt 0:00:18][%cal Rc8c5]} (27... Qxa4 28. c6 $11) (27... Rxc5 28. axb5 Rxf5 29. Rc8+ Nf8 30. Bc6 $11) 28. Rb1 {[%emt 0:00:01]} Qxc5 {[%emt 0:00:18]} ({Less strong is} 28... Qxa4 29. c6 Rxc6 30. Bxc6 Qxc6 31. Qa5 $17) 29. Qd3 {[%emt 0:00:33]} (29. Qxc5 $142 Nxc5 (29... Rxc5 $2 30. Rb7 $19) 30. Rc1) 29... h6 {[%emt 0:00:30]} 30. Rb7 {[%emt 0:00:15]} Ne5 {[%emt 0:00:18]} 31. Qd2 {[%emt 0:00:27]} Nc4 {[%emt 0:00:12]} 32. Qc3 {[%emt 0:00:27]} Qxd6 {[%emt 0:00:36]} ({Much less strong is} 32... Nxd6 33. Qxc5 Rxc5 34. Rxa7 $19) 33. Rxa7 {[%emt 0:00:05]} Nb6 {[%emt 0:00:02]} 34. Qb3 {[%emt 0:00:05]} (34. Qe1 Qc5 35. Qd1) 34... Nbd5 $2 {[%emt 0:00:08]} (34... Rc1+ 35. Kh2 Nc4) 35. a5 $2 {[%emt 0:00:06]} (35. Kh2 {was called for.}) 35... Rb8 $2 {[%emt 0:00:04]} (35... Rc1+ $19 36. Kh2 Qc5) 36. Qa2 $2 {[%emt 0:00:05][%mdl 8192]} (36. Rb7 $11 Re8 37. a6) 36... Qc5 {[%emt 0:00:03]} 37. Ra6 {[%emt 0:00:17]} Qc1+ {[%emt 0:00:02]} 38. Kh2 {[%emt 0:00:00] [#]} Rb1 $1 {[%emt 0:00:12][%csl Gb1][%cal Rc1g1]} 39. Ra8+ {[%emt 0:00:48]} (39. Qxb1 Qxb1) 39... Kh7 {[%emt 0:00:03][%csl Gb1][%cal Rc1g1]} 40. h4 {[%emt 0:00:01]} Rb2 {[%emt 0:00:04] Black mates.} 41. Qa4 {[%emt 0:00:08]} h5 {[%emt 0:00:05]} 42. Be4+ {[%emt 0:00:10]} g6 {[%emt 0:00:06]} 43. Bxd5 {[%emt 0:00:01]} Ng4+ {[%emt 0:00:04] Weighted Error Value: White=1.10/Black=0.43.  Loses game:     	White=1     	---        Mistake:       	White=6     	Black=1      Inaccurate:     	---       	Black=2      OK:         	White=5     	Black=11     Best:        	White=1     	Black=2      Strong:       	White=1     	Black=2} ({Worse is} 43... Nxd5 44. Qd4 f6 45. Rd8 $11) 0-1

[Event "Memorial Ukrainian Chess Warriors 2024"]
[Site "Lviv"]
[Date "2024.03.15"]
[Round "5.6"]
[White "Pavlov, Sergey"]
[Black "Bagiryan, Vigen"]
[Result "1-0"]
[ECO "A21"]
[WhiteElo "2451"]
[BlackElo "1969"]
[Annotator "TA"]
[PlyCount "117"]
[EventDate "2024.03.06"]
[EventType "swiss"]
[EventCountry "UKR"]
[SourceTitle "playchess.com"]
[Source "ChessBase"]
[SourceQuality "1"]
[TimeControl "600+5"]

{[%evp 11,117,20,61,65,59,58,72,47,59,52,48,44,45,38,93,17,15,8,68,14,61,43,44,52,52,26,48,29,70,1,33,16,34,27,44,43,53,21,85,88,85,86,187,187,180,112,112,89,111,98,105,100,122,126,129,129,130,129,139,139,162,162,163,156,235,231,231,236,356,364,333,365,405,392,858,541,495,395,406,380,379,277,428,213,295,270,550,530,716,702,829,872,827,794,1766,1674,1037,1031,1483,1320,1682,1796,1788,2041,4933,4845,29990,29991]} 1. c4 {[%emt 0:00:03]} e5 {[%emt 0:00:03]} 2. Nc3 {[%emt 0:00:02]} d6 {[%emt 0:00:13]} 3. e3 {[%emt 0:00:40]} g6 {[%emt 0:00:12]} 4. d4 {[%emt 0:00:02][%cal Bd2d4,Bd4d5][%mdl 32]} Bg7 {[%emt 0:00:02]} 5. Nf3 {[%emt 0:00:04]} Nc6 {[%emt 0:00:03]} 6. Be2 {[%emt 0:00:27]} Nh6 {[%emt 0:00:35]} 7. d5 {[%emt 0:01:06]} Nb8 {[%emt 0:00:10]} 8. e4 {[%emt 0:00:44]} f6 {[%emt 0:00:17]} 9. h3 {[%emt 0:00:32] Weiß steht besser.} Nf7 {[%emt 0:00:04]} 10. h4 {[%emt 0:04:19]} h5 {[%emt 0:00:09]} 11. Rb1 {[%emt 0:01:00]} a5 12. a3 c5 {[%emt 0:00:18]} (12... O-O $14) 13. b4 {[%emt 0:00:32]} (13. Nd2 $16) 13... axb4 $11 {[%emt 0:00:04]} 14. axb4 {[%emt 0:00:01]} b6 {[%emt 0:00:35]} (14... Na6 $11) 15. O-O {[%emt 0:00:26]} ({Vorzuziehen ist} 15. b5 $14) 15... O-O {[%emt 0:00:04]} (15... Na6 $11 {war vorzuziehen.}) 16. bxc5 {[%emt 0:00:36]} bxc5 {[%emt 0:00:05]} 17. Nb5 {[%emt 0:00:18]} Na6 {[%emt 0:00:10]} 18. Bd2 {[%emt 0:00:03]} Bg4 {[%emt 0:00:17]} 19. Ra1 {[%emt 0:00:05]} Qd7 {[%emt 0:00:33]} 20. Qc2 {[%emt 0:00:30] Weiß steht aktiver.} (20. Nh2 $14 Bxe2 21. Qxe2) 20... Nc7 {[%emt 0:00:29]} 21. Nc3 {[%emt 0:00:08][%cal Bb5c3,Bc3d1,Bd1e3][%mdl 32]} Rfb8 {[%emt 0:00:07]} 22. Rfb1 {[%emt 0:00:05]} Kh7 {[%emt 0:00:36]} 23. Rxa8 {[%emt 0:00:07]} Rxa8 {[%emt 0:00:02]} 24. Nd1 {[%emt 0:00:01]} (24. Rb7 {ist vielschichtiger.} Nd8 25. Rb3 Ra1+ 26. Kh2) 24... Nd8 {[%emt 0:00:53] [#]} (24... Bh6 $11) 25. Ne3 $1 $16 {[%emt 0:00:02] Schwarz muss nun Nxg4 beachten.} Bxf3 {[%emt 0:00:13]} 26. Bxf3 {[%emt 0:00:01]} Qa4 {[%emt 0:00:40]} (26... Bh6 $16 {war einen Versuch wert.}) 27. Qxa4 $18 {[%emt 0:00:02]} Rxa4 {[%emt 0:00:00] [#] Schwarz ist schwach auf den weissen Feldern} 28. Rb8 {[%emt 0:00:02]} ({Günstiger ist} 28. g4 $1 $18) 28... Ra8 $16 {[%emt 0:00:01]} 29. Rb6 {[%emt 0:00:10]} Bf8 {[%emt 0:00:04]} 30. g3 {[%emt 0:00:12]} Be7 {[%emt 0:00:08]} 31. Kf1 {[%emt 0:00:10]} Ra6 {[%emt 0:00:09]} 32. Rb8 {[%emt 0:00:05][%cal Of3h5]} Ra8 {[%emt 0:00:01]} 33. Rxa8 {[%emt 0:00:07]} Nxa8 {[%emt 0:00:01]} 34. Bd1 {[%emt 0:00:01]} Nb6 {[%emt 0:00:27]} 35. Ba5 {[%emt 0:00:01]} Nd7 {[%emt 0:00:12]} 36. Ba4 {[%emt 0:00:03]} Nf8 {[%emt 0:00:31]} 37. Nc2 {[%emt 0:00:15]} g5 {[%emt 0:00:05]} (37... Nf7 $16 {war angesagt.} 38. Bc7 f5 39. exf5 gxf5) 38. hxg5 {[%emt 0:00:06]} fxg5 {[%emt 0:00:01]} 39. Ne3 {[%emt 0:00:00]} Nb7 {[%emt 0:00:24]} (39... Nf7 {kämpft weiter.} 40. Nf5 Bd8) 40. Bc7 $18 {[%emt 0:00:02]} Bd8 {[%emt 0:00:02]} 41. Bb8 {[%emt 0:00:04]} Ng6 {[%emt 0:00:48]} 42. Nf5 {[%emt 0:00:02]} (42. Bc6 Na5 43. Bxd6 Nb3 $18) 42... Be7 $2 {[%emt 0:00:00]} (42... Na5 43. Nxd6 Be7) 43. Bc6 {[%emt 0:00:09]} Na5 {[%emt 0:00:01]} 44. Be8 {[%emt 0:00:10]} (44. Bxd6 Bxd6 45. Nxd6 Kg7 $18) 44... Bf8 {[%emt 0:00:06]} 45. Bb5 {[%emt 0:00:03]} (45. Bxd6 Bxd6 46. Nxd6 Kg7 $18) 45... Nb3 {[%emt 0:00:10]} 46. f3 {[%emt 0:00:10]} (46. Bxd6 Nd2+ 47. Kg2 Nxe4) 46... g4 {[%emt 0:00:11]} (46... Nd4 {ist wohl besser.} 47. Nxd6 Nxf3) 47. Kf2 {[%emt 0:00:04]} (47. Nxd6 Bxd6 48. Bxd6 h4 $18) (47. Bxd6 gxf3 (47... Bxd6 $2 48. Nxd6 gxf3 49. Nb7 $18) 48. Bc7 Ne7 $16) (47. fxg4 $142 hxg4 48. Ke1 (48. Nxd6 Bxd6 49. Bxd6 Nd2+ 50. Ke1 Nxe4 $18) (48. Bxd6 Bxd6 49. Nxd6 Na5 $18)) 47... Nd2 {[%emt 0:00:11]} 48. fxg4 {[%emt 0:00:05] Ke3 wäre nun fies.} ({Nicht} 48. Nxd6 Bxd6 49. Bxd6 gxf3 $16) 48... hxg4 $2 {[%emt 0:00:19]} (48... Ne7 {ist eine bessere Verteidigung.} 49. Nxd6 Nxd5) 49. Ke3 {[%emt 0:00:04]} (49. Nxd6 $2 {geht unter.} Bxd6 50. Ke3 (50. Bxd6 $2 {ist das falsche Schlagen.} Nxe4+ 51. Kg1 Nxd6 $19) 50... Bxb8 $19) 49... Nf3 {[%emt 0:00:36]} 50. Bxd6 {[%emt 0:00:05]} Bxd6 {[%emt 0:00:09]} 51. Nxd6 {[%emt 0:00:01][%mdl 4096] Endspiel. KBN-KNN} Nd4 {[%emt 0:01:28]} 52. Nb7 {[%emt 0:00:03]} Nb3 {[%emt 0:00:02]} 53. Ba4 {[%emt 0:00:07]} Nd4 {[%emt 0:00:10]} 54. Nxc5 {[%emt 0:00:03]} Kg7 {[%emt 0:00:05]} 55. Nb3 {[%emt 0:00:06]} Nc2+ {[%emt 0:00:02]} 56. Kd2 {[%emt 0:00:04]} Nb4 {[%emt 0:00:02]} 57. c5 {[%emt 0:00:05][%cal Bc4c5,Bc5c6,Bc6c7][%mdl 32]} Kf6 {[%emt 0:00:09]} 58. c6 {[%emt 0:00:03]} Ke7 {[%emt 0:00:04]} 59. c7 {[%emt 0:00:05] Gewichteter Fehlerwert: Weiß=0.31/Schwarz=0.54.  Fehler:       	Weiß=5     	Schwarz=10    Ungenau:       	Weiß=3     	Schwarz=4     OK:         	Weiß=15    	Schwarz=9     Bester:       	Weiß=1     	Schwarz=1     Stark:        	Weiß=1     	---} 1-0

[Event "Memorial Ukrainian Chess Warriors 2024"]
[Site "Lviv"]
[Date "2024.03.15"]
[Round "5.7"]
[White "Fainkihen, Efim"]
[Black "Petursson, Margeir"]
[Result "0-1"]
[ECO "B27"]
[WhiteElo "1976"]
[BlackElo "2344"]
[Annotator "TA"]
[PlyCount "87"]
[EventDate "2024.03.06"]
[EventType "swiss"]
[EventCountry "UKR"]
[SourceTitle "playchess.com"]
[Source "ChessBase"]
[SourceQuality "1"]
[TimeControl "600+5"]

{[%evp 9,87,16,24,0,0,8,0,-39,-9,-3,0,0,-8,-23,8,-20,32,0,7,-65,-16,-24,0,-141,37,11,177,41,45,-111,-111,-121,-12,-9,77,91,82,8,0,0,0,-2,-12,0,0,0,0,0,0,0,0,0,0,-32,-24,-36,-45,-58,-32,-49,-12,-92,-102,-131,-123,-159,-151,-162,-189,-188,-178,-136,-140,-147,-164,-242,-229,-1859,-1859,-29999]} 1. e4 {[%emt 0:00:03][%cal Be2e4,Be4e5][%mdl 32]} c5 {[%emt 0:00:01]} 2. Nf3 {[%emt 0:00:02]} g6 {[%emt 0:00:01]} 3. c3 {[%emt 0:00:03]} d5 {[%emt 0:00:04]} 4. e5 {[%emt 0:00:05]} a6 {[%emt 0:00:01]} 5. d4 {[%emt 0:00:07]} Nc6 {[%emt 0:00:06]} 6. h3 {[%emt 0:00:33]} Bg7 {[%emt 0:00:02]} 7. Bd3 {[%emt 0:00:14]} f6 {[%emt 0:00:03]} 8. Bf4 {[%emt 0:00:56] The position is equal.} ({Reject} 8. dxc5 fxe5 9. Bc2 Nf6 $17) 8... fxe5 {[%emt 0:00:29]} 9. dxe5 {[%emt 0:00:18]} Nh6 {[%emt 0:00:03]} 10. O-O {[%emt 0:00:13]} O-O {[%emt 0:00:11]} 11. Qd2 {[%emt 0:00:19]} Nf7 {[%emt 0:00:28]} (11... Bf5 $5 12. Bxf5 Nxf5 $15) 12. Re1 {[%emt 0:00:10]} e6 {[%emt 0:00:19]} ({Black should try} 12... Qb6 $11) 13. h4 {[%emt 0:00:24]} Qc7 {[%emt 0:00:32]} 14. Qe2 {[%emt 0:00:29]} (14. Qe3 $11) 14... Nh6 {[%emt 0:00:19]} (14... c4 $15 {should be considered.} 15. Bc2 Qb6) 15. g3 {[%emt 0:00:21]} Ng4 {[%emt 0:00:37]} 16. Nbd2 {[%emt 0:00:19]} (16. Bc2 $11 {keeps the balance.}) 16... Bd7 $2 {[%emt 0:00:31] Black is more active.} (16... Rxf4 $1 $17 17. gxf4 Qf7) 17. Nf1 {[%emt 0:00:02]} Rf7 $2 {[%emt 0:00:20]} (17... c4 $1 $11 {and Black is okay.} 18. Bc2 Qb6) 18. N1h2 {[%emt 0:00:09]} ({White has to play} 18. Ng5 $18 Ngxe5 19. Nxf7 Kxf7 20. h5) 18... Nxh2 $14 {[%emt 0:00:12]} 19. Nxh2 {[%emt 0:00:05]} (19. Kxh2 $14 {is the one way to stay ahead.} Raf8 20. Qd2) 19... Raf8 $17 {[%emt 0:00:08]} 20. Qe3 {[%emt 0:00:47][%cal Oh2g4]} Ne7 {[%emt 0:00:13]} (20... Rxf4 $17 21. gxf4 Bh6) 21. Ng4 $11 {[%emt 0:00:54][%cal Og4f6] Hoping for Nf6+!} Nf5 {[%emt 0:00:43]} (21... Rxf4 $11 {remains equal.} 22. gxf4 h5) 22. Bxf5 $16 {[%emt 0:00:25]} (22. Nf6+ Bxf6 23. exf6 Nxe3 $11) 22... Rxf5 {[%emt 0:00:03] [#]} 23. Nf6+ {[%emt 0:00:32]} Bxf6 $11 {[%emt 0:01:24]} 24. exf6 {[%emt 0:00:02]} Rxf4 {[%emt 0:00:07]} 25. gxf4 {[%emt 0:00:30][%cal Of4f5]} Rxf6 {[%emt 0:00:13]} 26. Qe5 {[%emt 0:00:05]} Qxe5 {[%emt 0:00:09]} 27. fxe5 {[%emt 0:00:18][%mdl 4096] Endgame. KRR-KRB} Rf4 {[%emt 0:00:02]} 28. Kg2 {[%emt 0:00:41]} Rxh4 {[%emt 0:00:10][%cal Bf4h4,Bh4h5,Bh5f5][%mdl 32]} 29. Kg3 {[%emt 0:00:07] Wards off h5} Rh5 {[%emt 0:00:35]} 30. f4 {[%emt 0:00:24] Repels Rg5+} Rf5 {[%emt 0:00:04]} 31. Kg4 {[%emt 0:00:45]} h5+ {[%emt 0:00:58]} 32. Kg3 {[%emt 0:00:03]} Bb5 {[%emt 0:00:22]} 33. Rad1 {[%emt 0:00:18]} Kf7 {[%emt 0:00:25]} 34. b3 {[%emt 0:00:13]} Ke7 {[%emt 0:00:15]} 35. Rg1 {[%emt 0:00:31] [#]} (35. Rd2 $11) 35... g5 $1 $17 {[%emt 0:00:12]} 36. fxg5 {[%emt 0:00:20]} Rxg5+ {[%emt 0:00:03]} 37. Kh4 {[%emt 0:00:23]} Rxe5 {[%emt 0:00:02]} 38. Rg7+ {[%emt 0:00:29]} Kf6 {[%emt 0:00:21]} 39. Rxb7 {[%emt 0:00:11][%cal Oc3c4]} Re4+ {[%emt 0:00:03]} 40. Kg3 {[%emt 0:00:17][%cal Oc3c4]} Re3+ {[%emt 0:00:12]} 41. Kf4 {[%emt 0:00:15]} Rxc3 {[%emt 0:00:12][%csl Gf6][%cal Re6e5]} 42. Rb6 {[%emt 0:00:01] [#]} (42. Re1 $142) 42... Bd3 $1 $19 {[%emt 0:00:29]} 43. Rh1 $2 {[%emt 0:00:08]} (43. Re1 Be4 44. Rxe4 dxe4 45. Kxe4) 43... Be2 {[%emt 0:00:10][%csl Ge2][%cal Rc3f3]} 44. Rh2 {Weighted Error Value: White=0.52/Black=0.27 (precise) .  Loses game:     	---       	Black=1      Mistake:       	White=8     	Black=5      Inaccurate:     	White=5     	Black=4      OK:         	White=13    	Black=13     Best:        	White=1     	Black=4      Strong:       	---       	Black=2} 0-1

[Event "Memorial Ukrainian Chess Warriors 2024"]
[Site "Lviv"]
[Date "2024.03.15"]
[Round "5.8"]
[White "Starozhilov, Leonid"]
[Black "Bykovskiy, Oleg"]
[Result "1/2-1/2"]
[ECO "C01"]
[WhiteElo "2285"]
[BlackElo "2231"]
[Annotator "TA"]
[PlyCount "26"]
[EventDate "2024.03.06"]
[EventType "swiss"]
[EventCountry "UKR"]
[SourceTitle "playchess.com"]
[Source "ChessBase"]
[SourceQuality "1"]
[TimeControl "600+5"]

{[%evp 13,26,0,7,-4,9,10,8,10,7,6,8,0,5,-14,7]} 1. e4 {[%emt 0:00:01]} e6 {[%emt 0:00:00]} 2. d4 {[%emt 0:00:01]} d5 {[%emt 0:00:01]} 3. exd5 {[%emt 0:00:02]} exd5 {[%emt 0:00:01]} 4. Bd3 {[%emt 0:00:02]} Nf6 {[%emt 0:00:01]} 5. Ne2 {[%emt 0:00:03]} Bd6 {[%emt 0:00:02]} 6. Bf4 {[%emt 0:00:04]} O-O {[%emt 0:00:03]} 7. O-O {[%emt 0:00:02]} Bg4 {[%emt 0:00:33] [#] aiming for ...Bxf4. The position is equal.} 8. f3 {[%emt 0:00:19]} Bh5 {[%emt 0:00:05]} 9. Nbc3 {[%emt 0:00:09]} c6 {[%emt 0:00:04]} 10. Qd2 {[%emt 0:00:12]} Bg6 {[%emt 0:00:08]} 11. Bxg6 {[%emt 0:00:09]} hxg6 {[%emt 0:00:01]} 12. Bxd6 {[%emt 0:00:07]} Qxd6 {[%emt 0:00:02]} 13. Qf4 {[%emt 0:00:02]} Qxf4 {[%emt 0:00:02] Not much happened in this game.   Weighted Error Value: White=0.06 (flawless) /Black=0.05 (flawless) .  OK:         	White=2     	Black=1} 1/2-1/2

[Event "Memorial Ukrainian Chess Warriors 2024"]
[Site "Lviv"]
[Date "2024.03.15"]
[Round "5.11"]
[White "Terletsky, Oleg A."]
[Black "Petrov, Vladimir Sergeev"]
[Result "1-0"]
[ECO "B03"]
[WhiteElo "2036"]
[BlackElo "2349"]
[Annotator "TA"]
[PlyCount "49"]
[EventDate "2024.03.06"]
[EventType "swiss"]
[EventCountry "UKR"]
[SourceTitle "playchess.com"]
[Source "ChessBase"]
[SourceQuality "1"]
[TimeControl "600+5"]

{[%evp 13,49,27,27,11,28,0,53,62,54,11,0,11,98,104,112,112,119,62,83,70,118,146,131,94,140,121,110,116,94,98,118,116,137,124,558,547,951,979]} 1. e4 {[%emt 0:00:01][%cal Be2e4,Be4e5][%mdl 32]} Nf6 {[%emt 0:00:02]} 2. e5 {[%emt 0:00:05]} Nd5 {[%emt 0:00:01]} 3. c4 {[%emt 0:00:03]} Nb6 {[%emt 0:00:01]} 4. d4 {[%emt 0:00:01]} d6 {[%emt 0:00:01]} 5. exd6 {[%emt 0:00:13]} exd6 {[%emt 0:00:01]} 6. Nc3 {[%emt 0:00:12]} Be7 {[%emt 0:00:01]} 7. Be3 {[%emt 0:00:17]} O-O {[%emt 0:00:02]} 8. Qc2 {[%emt 0:00:05]} Nc6 {[%emt 0:00:11]} 9. O-O-O {[%emt 0:00:17]} d5 {[%emt 0:00:45]} ({Black should try} 9... Nb4 $11 10. Qb3 Nc6) 10. c5 $14 {[%emt 0:00:25] White is slightly better.} Nc4 {[%emt 0:00:01]} ({Much worse is} 10... Nb4 $6 11. Qb3 $18) 11. Bxc4 {[%emt 0:00:10]} (11. Nxd5 $5 Nxe3 12. Nxe3 $16) 11... dxc4 {[%emt 0:00:01]} 12. Qa4 {[%emt 0:00:42] Repels Nb4} Bg5 {[%emt 0:00:13]} (12... Rb8 $11) 13. Nf3 $16 {[%emt 0:00:55]} Bxe3+ {[%emt 0:00:20]} 14. fxe3 {[%emt 0:00:02]} Re8 {[%emt 0:00:05]} 15. Rhe1 {[%emt 0:00:16] White is more active.} (15. e4 $16) 15... Bg4 $14 {[%emt 0:00:35]} 16. Qxc4 {[%emt 0:00:19]} Bxf3 {[%emt 0:00:02]} (16... Qf6 $1 $14) 17. gxf3 $16 {[%emt 0:00:06]} Qh4 {[%emt 0:00:01][%cal Oa8d8]} 18. a3 {[%emt 0:00:52]} Na5 {[%emt 0:01:11]} ({Black should play} 18... Rad8) 19. Qb5 {[%emt 0:00:18]} b6 {[%emt 0:00:04]} 20. c6 {[%emt 0:00:32]} a6 {[%emt 0:00:15] [#]} 21. Qa4 {[%emt 0:00:16]} Rad8 {[%emt 0:00:22][%cal Od8d4]} 22. Kb1 {[%emt 0:00:32]} Qxh2 {[%emt 0:00:34]} 23. d5 {[%emt 0:00:41]} Qf2 $2 {[%emt 0:00:13][%mdl 8192]} (23... Qg3 $16) 24. Qf4 $18 {[%emt 0:00:11][%cal Oe1e2] aiming for Re2!} Nb3 {[%emt 0:00:27]} 25. Re2 {[%emt 0:00:10] Prevents Nd2+.   Weighted Error Value: White=0.13 (very precise) /Black=0.58.  Loses game:     	---       	Black=1      Mistake:       	White=1     	Black=4      Inaccurate:     	White=2     	Black=1      OK:         	White=6     	Black=5      Best:        	White=2     	Black=1} 1-0

[Event "Memorial Ukrainian Chess Warriors 2024"]
[Site "Lviv"]
[Date "2024.03.15"]
[Round "5.12"]
[White "Tarleva, Vira"]
[Black "Trushko, Andrii"]
[Result "1/2-1/2"]
[ECO "B13"]
[WhiteElo "2030"]
[BlackElo "2050"]
[Annotator "RC"]
[PlyCount "92"]
[EventDate "2024.03.06"]
[EventType "swiss"]
[EventCountry "UKR"]
[SourceTitle "playchess.com"]
[Source "ChessBase"]
[SourceQuality "1"]
[TimeControl "600+5"]

1. e4 c6 2. d4 d5 3. exd5 cxd5 4. Bd3 Nf6 5. c3 Nc6 6. Bf4 g6 7. Nf3 Bf5 8. O-O Bg7 9. Re1 O-O 10. Bxf5 gxf5 11. Nbd2 Ne4 12. Ng5 e6 13. Qh5 Nf6 14. Qh3 h6 15. Ngf3 Kh7 16. Ng5+ Kg6 17. Ngf3 Rg8 18. Nh4+ Kh7 19. Ndf3 Ne4 20. Nxf5 exf5 21. Qxf5+ Kh8 22. Rxe4 dxe4 23. Ng5 Qxg5 24. Bxg5 Rae8 25. Bf6 Ne7 26. Bxg7+ Kxg7 27. Qxe4 Ng6 28. Qxb7 Rb8 29. Qxa7 Rxb2 30. g3 Rc8 31. d5 Rd2 32. Qa5 Ne5 33. d6 Kf6 34. Kg2 Ng4 35. Qa6 Rxc3 36. d7+ Kg7 37. Re1 Rcc2 38. Rf1 Ne3+ 39. Kf3 Nxf1 40. Qxf1 Rxd7 41. a4 Ra2 42. Qb5 Rdd2 43. Qe5+ Kg8 44. Qe8+ Kg7 45. Qe5+ Kg8 46. Qe8+ Kg7 1/2-1/2